fUST/lending_fUST_20250518
["ID","MTS","AMOUNT","RATE_DAILY","PERIOD"]
[361369367,1747519853972,-215.0738,0.00015059,2]
[361369368,1747519853981,-359.36,0.00015068,2]
[361369369,1747519853991,-450.0,0.00015068,2]
[361369370,1747519854000,-450.0,0.00015068,2]
[361369371,1747519854010,-450.0,0.00015068,2]
[361369372,1747519854019,-640.21,0.00015068,2]
[361369373,1747519854028,-272.65,0.00015068,2]
[361369374,1747519854039,-2845.22,0.00015068,2]
[361369375,1747519854050,-1276.89,0.00015068,2]
[361369376,1747519854060,-736.33,0.00015068,2]
[361369377,1747519854069,-917.93,0.00015068,2]
[361369378,1747519854079,-553.15,0.00015068,2]
[361369379,1747519854089,-450.0,0.00015068,2]
[361369380,1747519854098,-243.84,0.00015068,2]
[361369381,1747519854107,-450.0,0.00015068,2]
[361369382,1747519854116,-471.03,0.00015068,2]
[361369383,1747519854126,-459.21,0.00015068,2]
[361369384,1747519854135,-450.0,0.00015068,2]
[361369385,1747519854145,-895.76,0.00015068,2]
[361369386,1747519854155,-450.0,0.00015068,2]
[361369387,1747519854165,-3778.14,0.00015068,2]
[361369388,1747519854175,-753.06,0.00015068,2]
[361369389,1747519854185,-594.88,0.00015068,2]
[361369390,1747519854195,-450.0,0.00015068,2]
[361369391,1747519854205,-486.15,0.00015068,2]
[361369392,1747519854214,-450.0,0.00015068,2]
[361369393,1747519854224,-450.0,0.00015068,2]
[361369394,1747519854235,-574.05,0.00015068,2]
[361369395,1747519854244,-1253.29,0.00015068,2]
[361369396,1747519854254,-450.0,0.00015068,2]
[361369397,1747519854263,-450.0,0.00015068,2]
[361369398,1747519854273,-977.84,0.00015068,2]
[361369399,1747519854283,-3877.21,0.00015068,2]
[361369400,1747519854293,-779.76,0.00015068,2]
[361369401,1747519854302,-1674.21,0.00015068,2]
[361369402,1747519854312,-450.0,0.00015068,2]
[361369403,1747519854322,-1175.21,0.00015068,2]
[361369404,1747519854332,-450.0,0.00015068,2]
[361369405,1747519854341,-481.19,0.00015068,2]
[361369406,1747519854351,-450.0,0.00015068,2]
[361369407,1747519854360,-450.0,0.00015068,2]
[361369408,1747519854371,-450.0,0.00015068,2]
[361369409,1747519854380,-669.14,0.00015068,2]
[361369410,1747519854390,-450.0,0.00015068,2]
[361369411,1747519854399,-752.82,0.00015068,2]
[361369412,1747519854409,-1887.62,0.00015068,2]
[361369413,1747519854419,-2597.94,0.00015068,2]
[361369414,1747519854429,-1139.14,0.00015068,2]
[361369415,1747519854438,-1062.44557331,0.00015141,2]
[361369416,1747519854448,-151.0,0.000152,2]
[361369417,1747519854457,-450.0,0.00015205,2]
[361369418,1747519854467,-450.0,0.00015205,2]
[361369419,1747519854476,-450.0,0.00015205,2]
[361369420,1747519854486,-640.21,0.00015205,2]
[361369421,1747519854496,-2845.22,0.00015205,2]
[361369422,1747519854506,-1276.89,0.00015205,2]
[361369423,1747519854515,-736.33,0.00015205,2]
[361369424,1747519854525,-917.93,0.00015205,2]
[361369425,1747519854534,-450.0,0.00015205,2]
[361369426,1747519854543,-450.0,0.00015205,2]
[361369427,1747519854553,-471.03,0.00015205,2]
[361369428,1747519854562,-459.21,0.00015205,2]
[361369429,1747519854572,-450.0,0.00015205,2]
[361369430,1747519854581,-895.76,0.00015205,2]
[361369431,1747519854591,-450.0,0.00015205,2]
[361369432,1747519854600,-3778.14,0.00015205,2]
[361369433,1747519854609,-753.06,0.00015205,2]
[361369434,1747519854619,-594.88,0.00015205,2]
[361369435,1747519854628,-450.0,0.00015205,2]
[361369436,1747519854637,-450.0,0.00015205,2]
[361369437,1747519854647,-450.0,0.00015205,2]
[361369438,1747519854657,-574.05,0.00015205,2]
[361369439,1747519854666,-1253.29,0.00015205,2]
[361369440,1747519854675,-450.0,0.00015205,2]
[361369441,1747519854685,-450.0,0.00015205,2]
[361369442,1747519854696,-977.84,0.00015205,2]
[361369443,1747519854706,-3877.21,0.00015205,2]
[361369444,1747519854715,-779.76,0.00015205,2]
[361369445,1747519854724,-1674.21,0.00015205,2]
[361369446,1747519854736,-450.0,0.00015205,2]
[361369447,1747519854745,-1175.21,0.00015205,2]
[361369448,1747519854755,-450.0,0.00015205,2]
[361369449,1747519854764,-481.19,0.00015205,2]
[361369450,1747519854773,-450.0,0.00015205,2]
[361369451,1747519854783,-450.0,0.00015205,2]
[361369452,1747519854792,-450.0,0.00015205,2]
[361369453,1747519854802,-669.14,0.00015205,2]
[361369454,1747519854812,-450.0,0.00015205,2]
[361369455,1747519854821,-752.82,0.00015205,2]
[361369456,1747519854831,-1887.62,0.00015205,2]
[361369457,1747519854840,-2597.94,0.00015205,2]
[361369458,1747519854849,-1139.14,0.00015205,2]
[361369459,1747519854859,-429.87134252,0.00015318,2]
[361369460,1747519854868,-450.0,0.00015342,2]
[361369461,1747519854877,-450.0,0.00015342,2]
[361369462,1747519854886,-450.0,0.00015342,2]
[361369463,1747519854895,-640.21,0.00015342,2]
[361369464,1747519854905,-2845.22,0.00015342,2]
[361369465,1747519854915,-1276.89,0.00015342,2]
[361369466,1747519854924,-736.33,0.00015342,2]
[361369467,1747519854932,-917.93,0.00015342,2]
[361369468,1747519854942,-450.0,0.00015342,2]
[361369469,1747519854951,-450.0,0.00015342,2]
[361369470,1747519854961,-471.03,0.00015342,2]
[361369471,1747519854970,-459.21,0.00015342,2]
[361369472,1747519854980,-450.0,0.00015342,2]
[361369473,1747519854990,-895.76,0.00015342,2]
[361369474,1747519854999,-450.0,0.00015342,2]
[361369475,1747519855009,-3778.14,0.00015342,2]
[361369476,1747519855019,-753.06,0.00015342,2]
[361369477,1747519855028,-594.88,0.00015342,2]
[361369478,1747519855037,-450.0,0.00015342,2]
[361369479,1747519855046,-450.0,0.00015342,2]
[361369480,1747519855056,-450.0,0.00015342,2]
[361369481,1747519855065,-574.05,0.00015342,2]
[361369482,1747519855078,-1253.29,0.00015342,2]
[361369483,1747519855087,-436.38,0.00015342,2]
[361369484,1747519855096,-450.0,0.00015342,2]
[361369485,1747519855106,-977.84,0.00015342,2]
[361369486,1747519855115,-3877.21,0.00015342,2]
[361369487,1747519855124,-779.76,0.00015342,2]
[361369488,1747519855133,-1674.21,0.00015342,2]
[361369489,1747519855143,-450.0,0.00015342,2]
[361369490,1747519855152,-1175.21,0.00015342,2]
[361369491,1747519855162,-450.0,0.00015342,2]
[361369492,1747519855171,-481.19,0.00015342,2]
[361369493,1747519855181,-450.0,0.00015342,2]
[361369494,1747519855191,-450.0,0.00015342,2]
[361369495,1747519855200,-450.0,0.00015342,2]
[361369496,1747519855209,-669.14,0.00015342,2]
[361369497,1747519855219,-450.0,0.00015342,2]
[361369498,1747519855228,-752.82,0.00015342,2]
[361369499,1747519855240,-1887.62,0.00015342,2]
[361369500,1747519855249,-2597.94,0.00015342,2]
[361369501,1747519855259,-1139.14,0.00015342,2]
[361369502,1747519855268,-165.99443591,0.00015379,2]
[361369503,1747519855278,-11006.17954037,0.0001539,2]
[361369504,1747519855287,-450.0,0.00015479,2]
[361369505,1747519855296,-450.0,0.00015479,2]
[361369506,1747519855305,-450.0,0.00015479,2]
[361369507,1747519855314,-640.21,0.00015479,2]
[361369508,1747519855324,-2845.22,0.00015479,2]
[361369509,1747519855334,-1276.89,0.00015479,2]
[361369510,1747519855343,-736.33,0.00015479,2]
[361369511,1747519855352,-917.93,0.00015479,2]
[361369512,1747519855361,-462.46,0.00015479,2]
[361369513,1747519855371,-450.0,0.00015479,2]
[361369514,1747519855380,-471.03,0.00015479,2]
[361369515,1747519855390,-459.21,0.00015479,2]
[361369516,1747519855399,-450.0,0.00015479,2]
[361369517,1747519855408,-450.0,0.00015479,2]
[361369518,1747519855513,-895.76,0.00015479,2]
[361369519,1747519855523,-3778.14,0.00015479,2]
[361369520,1747519855532,-753.06,0.00015479,2]
[361369521,1747519855542,-594.88,0.00015479,2]
[361369522,1747519855551,-450.0,0.00015479,2]
[361369523,1747519855560,-450.0,0.00015479,2]
[361369524,1747519855570,-450.0,0.00015479,2]
[361369525,1747519855579,-574.05,0.00015479,2]
[361369526,1747519855589,-1253.29,0.00015479,2]
[361369527,1747519855598,-450.0,0.00015479,2]
[361369528,1747519855607,-977.84,0.00015479,2]
[361369529,1747519855617,-3877.21,0.00015479,2]
[361369530,1747519855626,-779.76,0.00015479,2]
[361369531,1747519855635,-1674.21,0.00015479,2]
[361369532,1747519855644,-450.0,0.00015479,2]
[361369533,1747519855654,-1175.21,0.00015479,2]
[361369534,1747519855663,-450.0,0.00015479,2]
[361369535,1747519855673,-481.19,0.00015479,2]
[361369536,1747519855682,-450.0,0.00015479,2]
[361369537,1747519855694,-450.0,0.00015479,2]
[361369538,1747519855704,-450.0,0.00015479,2]
[361369539,1747519855714,-669.14,0.00015479,2]
[361369540,1747519855723,-450.0,0.00015479,2]
[361369541,1747519855733,-752.82,0.00015479,2]
[361369542,1747519855744,-1887.62,0.00015479,2]
[361369543,1747519855754,-2597.94,0.00015479,2]
[361369544,1747519855763,-1139.14,0.00015479,2]
[361369545,1747519855774,-151.0,0.000155,2]
[361369546,1747519855783,-1062.44557331,0.00015555,2]
[361369547,1747519855793,-238.473,0.00015616,2]
[361369548,1747519855803,-450.0,0.00015616,2]
[361369549,1747519855812,-450.0,0.00015616,2]
[361369550,1747519855822,-450.0,0.00015616,2]
[361369551,1747519855831,-640.21,0.00015616,2]
[361369552,1747519855841,-2845.22,0.00015616,2]
[361369553,1747519855852,-1276.89,0.00015616,2]
[361369554,1747519855861,-736.33,0.00015616,2]
[361369555,1747519855871,-917.93,0.00015616,2]
[361369556,1747519855880,-450.0,0.00015616,2]
[361369557,1747519855890,-471.03,0.00015616,2]
[361369558,1747519855899,-459.21,0.00015616,2]
[361369559,1747519855910,-450.0,0.00015616,2]
[361369560,1747519855920,-450.0,0.00015616,2]
[361369561,1747519855929,-895.76,0.00015616,2]
[361369562,1747519855939,-3778.14,0.00015616,2]
[361369563,1747519855949,-753.06,0.00015616,2]
[361369564,1747519855958,-594.88,0.00015616,2]
[361369565,1747519855968,-450.0,0.00015616,2]
[361369566,1747519855977,-450.0,0.00015616,2]
[361369567,1747519855988,-450.0,0.00015616,2]
[361369568,1747519855997,-574.05,0.00015616,2]
[361369569,1747519856007,-1253.29,0.00015616,2]
[361369570,1747519856016,-450.0,0.00015616,2]
[361369571,1747519856025,-977.84,0.00015616,2]
[361369572,1747519856035,-3877.21,0.00015616,2]
[361369573,1747519856044,-779.76,0.00015616,2]
[361369574,1747519856054,-1674.21,0.00015616,2]
[361369575,1747519856064,-450.0,0.00015616,2]
[361369576,1747519856074,-1175.21,0.00015616,2]
[361369577,1747519856084,-450.0,0.00015616,2]
[361369578,1747519856093,-481.19,0.00015616,2]
[361369579,1747519856103,-450.0,0.00015616,2]
[361369580,1747519856112,-350.98,0.00015616,2]
[361369581,1747519856122,-450.0,0.00015616,2]
[361369582,1747519856132,-669.14,0.00015616,2]
[361369583,1747519856142,-450.0,0.00015616,2]
[361369584,1747519856153,-752.82,0.00015616,2]
[361369585,1747519856162,-1887.62,0.00015616,2]
[361369586,1747519856172,-2597.94,0.00015616,2]
[361369587,1747519856182,-1139.14,0.00015616,2]
[361369588,1747519856191,-151.0,0.000157,2]
[361369589,1747519856201,-450.0,0.00015753,2]
[361369590,1747519856210,-450.0,0.00015753,2]
[361369591,1747519856219,-450.0,0.00015753,2]
[361369592,1747519856228,-640.21,0.00015753,2]
[361369593,1747519856238,-2845.22,0.00015753,2]
[361369594,1747519856248,-1276.89,0.00015753,2]
[361369595,1747519856258,-736.33,0.00015753,2]
[361369596,1747519856267,-917.93,0.00015753,2]
[361369597,1747519856277,-450.0,0.00015753,2]
[361369598,1747519856287,-471.03,0.00015753,2]
[361369599,1747519856297,-459.21,0.00015753,2]
[361369600,1747519856306,-450.0,0.00015753,2]
[361369601,1747519856316,-450.0,0.00015753,2]
[361369602,1747519856325,-895.76,0.00015753,2]
[361369603,1747519856335,-3778.14,0.00015753,2]
[361369604,1747519856344,-753.06,0.00015753,2]
[361369605,1747519856354,-594.88,0.00015753,2]
[361369606,1747519856364,-450.0,0.00015753,2]
[361369607,1747519856375,-450.0,0.00015753,2]
[361369608,1747519856384,-450.0,0.00015753,2]
[361369609,1747519856394,-574.05,0.00015753,2]
[361369610,1747519856404,-1253.29,0.00015753,2]
[361369611,1747519856414,-450.0,0.00015753,2]
[361369612,1747519856424,-977.84,0.00015753,2]
[361369613,1747519856434,-3877.21,0.00015753,2]
[361369614,1747519856444,-779.76,0.00015753,2]
[361369615,1747519856453,-1674.21,0.00015753,2]
[361369616,1747519856464,-450.0,0.00015753,2]
[361369617,1747519856474,-1175.21,0.00015753,2]
[361369618,1747519856484,-450.0,0.00015753,2]
[361369619,1747519856494,-481.19,0.00015753,2]
[361369620,1747519856503,-450.0,0.00015753,2]
[361369621,1747519856513,-450.0,0.00015753,2]
[361369622,1747519856523,-669.14,0.00015753,2]
[361369623,1747519856533,-450.0,0.00015753,2]
[361369624,1747519856542,-752.82,0.00015753,2]
[361369625,1747519856552,-1887.62,0.00015753,2]
[361369626,1747519856562,-2597.94,0.00015753,2]
[361369627,1747519856571,-1139.14,0.00015753,2]
[361369628,1747519856580,-450.0,0.0001589,2]
[361369629,1747519856589,-450.0,0.0001589,2]
[361369630,1747519856599,-450.0,0.0001589,2]
[361369631,1747519856608,-640.21,0.0001589,2]
[361369632,1747519856618,-2845.22,0.0001589,2]
[361369633,1747519856627,-1276.89,0.0001589,2]
[361369634,1747519856636,-736.33,0.0001589,2]
[361369635,1747519856646,-917.93,0.0001589,2]
[361369636,1747519856656,-450.0,0.0001589,2]
[361369637,1747519856665,-471.03,0.0001589,2]
[361369638,1747519856675,-459.21,0.0001589,2]
[361369639,1747519856685,-203.06881369,0.0001589,2]
[361369640,1747519856698,-450.0,0.0001589,2]
[361369641,1747519856708,-895.76,0.0001589,2]
[361369642,1747519856718,-3778.14,0.0001589,2]
[361369643,1747519856728,-753.06,0.0001589,2]
[361369644,1747519856739,-594.88,0.0001589,2]
[361369645,1747519856750,-451.66,0.0001589,2]
[361369646,1747519856759,-450.0,0.0001589,2]
[361369647,1747519856769,-450.0,0.0001589,2]
[361369648,1747519856778,-574.05,0.0001589,2]
[361369649,1747519856789,-1253.29,0.0001589,2]
[361369650,1747519856799,-450.0,0.0001589,2]
[361369651,1747519856808,-977.84,0.0001589,2]
[361369652,1747519856818,-3877.21,0.0001589,2]
[361369653,1747519856827,-779.76,0.0001589,2]
[361369654,1747519856838,-1674.21,0.0001589,2]
[361369655,1747519856847,-450.0,0.0001589,2]
[361369656,1747519856856,-1175.21,0.0001589,2]
[361369657,1747519856866,-450.0,0.0001589,2]
[361369658,1747519856875,-481.19,0.0001589,2]
[361369659,1747519856884,-450.0,0.0001589,2]
[361369660,1747519856893,-347.68,0.0001589,2]
[361369661,1747519856903,-669.14,0.0001589,2]
[361369662,1747519856912,-450.0,0.0001589,2]
[361369663,1747519856922,-752.82,0.0001589,2]
[361369664,1747519856932,-1887.62,0.0001589,2]
[361369665,1747519856941,-2597.94,0.0001589,2]
[361369666,1747519856951,-1139.14,0.0001589,2]
[361369667,1747519856960,-1062.44557331,0.00015969,2]
[361369668,1747519856969,-500.0,0.00015988,2]
[361369669,1747519856979,-408.69840429,0.00015988,2]
[361369670,1747519856988,-450.0,0.00016027,2]
[361369671,1747519856998,-450.0,0.00016027,2]
[361369672,1747519857007,-450.0,0.00016027,2]
[361369673,1747519857016,-640.21,0.00016027,2]
[361369674,1747519857025,-2845.22,0.00016027,2]
[361369675,1747519857034,-1276.89,0.00016027,2]
[361369676,1747519857044,-736.33,0.00016027,2]
[361369677,1747519857053,-917.93,0.00016027,2]
[361369678,1747519857062,-450.0,0.00016027,2]
[361369679,1747519857071,-471.03,0.00016027,2]
[361369680,1747519857080,-459.21,0.00016027,2]
[361369681,1747519857089,-223.78,0.00016027,2]
[361369682,1747519857098,-895.76,0.00016027,2]
[361369683,1747519857107,-3778.14,0.00016027,2]
[361369684,1747519857117,-753.06,0.00016027,2]
[361369685,1747519857126,-594.88,0.00016027,2]
[361369686,1747519857135,-450.0,0.00016027,2]
[361369687,1747519857144,-584.15,0.00016027,2]
[361369688,1747519857154,-574.05,0.00016027,2]
[361369689,1747519857164,-1253.29,0.00016027,2]
[361369690,1747519857173,-450.0,0.00016027,2]
[361369691,1747519857182,-977.84,0.00016027,2]
[361369692,1747519857280,-2761.31891402,0.00016027,2]
[361369695,1747519927088,4999.99,0.00027397,120]
[361369696,1747520167872,3164.90436725,0.00025652,120]
[361369697,1747520920773,5883.90034013,0.0001,2]
[361369742,1747521032585,-1200.0,0.00013597,2]
[361369744,1747521032595,-1492.13617536,0.00013598,2]
[361369760,1747521032730,-1343.44500342,0.00013598,2]
[361369762,1747521032742,-927.11693195,0.00013598,2]
[361369764,1747521032751,-376.13742474,0.00013598,2]
[361369766,1747521032761,-207.4,0.0001369,2]
[361369768,1747521032770,-151.0,0.0001369,2]
[361369770,1747521032779,-151.0,0.0001369,2]
[361369772,1747521032789,-300.0,0.00013696,2]
[361369774,1747521032798,-500.0,0.00013697,2]
[361369775,1747521032807,-500.0,0.00013697,2]
[361369777,1747521032817,-141.91977924,0.00013697,2]
[361369820,1747521038571,-358.08022076,0.00013697,2]
[361369821,1747521038581,-266.12469536,0.00013697,2]
[361369846,1747521043748,-233.87530464,0.00013697,2]
[361369847,1747521043758,-500.0,0.00013697,2]
[361369848,1747521043768,-584.6376878,0.00013697,2]
[361369849,1747521043777,-500.0,0.00013697,2]
[361369850,1747521043787,-500.0,0.00013697,2]
[361369851,1747521043796,-500.0,0.00013697,2]
[361369852,1747521043805,-500.0,0.00013697,2]
[361369853,1747521043815,-398.66423832,0.00013697,2]
[361369854,1747521043824,-500.0,0.00013697,2]
[361369855,1747521043834,-276.95361051,0.00013697,2]
[361369856,1747521043843,-151.0,0.00013698,2]
[361369857,1747521043852,-450.0,0.00013698,2]
[361369858,1747521043861,-155.0,0.00013698,2]
[361369859,1747521043870,-450.0,0.00013698,2]
[361369860,1747521043879,-450.0,0.00013698,2]
[361369861,1747521043889,-450.0,0.00013698,2]
[361369862,1747521043899,-450.0,0.00013698,2]
[361369863,1747521043908,-450.0,0.00013698,2]
[361369864,1747521043917,-450.0,0.00013698,2]
[361369865,1747521043927,-450.0,0.00013698,2]
[361369866,1747521043936,-450.0,0.00013698,2]
[361369867,1747521043946,-450.0,0.00013698,2]
[361369868,1747521043955,-350.0,0.00013698,2]
[361369869,1747521043965,-450.0,0.00013698,2]
[361369870,1747521043974,-450.0,0.00013698,2]
[361369871,1747521043984,-450.0,0.00013698,2]
[361369872,1747521043994,-450.0,0.00013698,2]
[361369873,1747521044003,-450.0,0.00013698,2]
[361369874,1747521044012,-450.0,0.00013698,2]
[361369875,1747521044021,-450.0,0.00013698,2]
[361369876,1747521044030,-450.0,0.00013698,2]
[361369877,1747521044039,-450.0,0.00013698,2]
[361369878,1747521044048,-450.0,0.00013698,2]
[361369879,1747521044058,-450.0,0.00013698,2]
[361369880,1747521044067,-450.0,0.00013698,2]
[361369881,1747521044077,-450.0,0.00013698,2]
[361369882,1747521044085,-450.0,0.00013698,2]
[361369883,1747521044095,-450.0,0.00013698,2]
[361369884,1747521044104,-450.0,0.00013698,2]
[361369885,1747521044112,-450.0,0.00013698,2]
[361369886,1747521044122,-250.0,0.00013698,2]
[361369887,1747521044131,-450.0,0.00013698,2]
[361369888,1747521044140,-450.0,0.00013698,2]
[361369889,1747521044150,-450.0,0.00013698,2]
[361369890,1747521044159,-273.24,0.00013698,2]
[361369891,1747521044168,-450.0,0.00013698,2]
[361369892,1747521044179,-450.0,0.00013698,2]
[361369893,1747521044189,-450.0,0.00013698,2]
[361369894,1747521044199,-450.0,0.00013698,2]
[361369895,1747521044208,-450.0,0.00013698,2]
[361369896,1747521044218,-450.0,0.00013698,2]
[361369897,1747521044229,-450.0,0.00013698,2]
[361369898,1747521044238,-450.0,0.00013698,2]
[361369899,1747521044248,-450.0,0.00013698,2]
[361369900,1747521044257,-450.0,0.00013698,2]
[361369901,1747521044266,-450.0,0.00013698,2]
[361369902,1747521044275,-450.0,0.00013698,2]
[361369903,1747521044285,-450.0,0.00013698,2]
[361369904,1747521044299,-450.0,0.00013698,2]
[361369905,1747521044310,-450.0,0.00013698,2]
[361369906,1747521044320,-450.0,0.00013698,2]
[361369907,1747521044329,-450.0,0.00013698,2]
[361369908,1747521044339,-599.96994709,0.00013698,2]
[361369909,1747521044348,-450.0,0.00013698,2]
[361369910,1747521044357,-450.0,0.00013698,2]
[361369911,1747521044366,-450.0,0.00013698,2]
[361369912,1747521044376,-450.0,0.00013698,2]
[361369913,1747521044385,-450.0,0.00013698,2]
[361369914,1747521044394,-450.0,0.00013698,2]
[361369915,1747521044403,-450.0,0.00013698,2]
[361369916,1747521044415,-450.0,0.00013698,2]
[361369917,1747521044426,-450.0,0.00013698,2]
[361369918,1747521044437,-450.0,0.00013698,2]
[361369919,1747521044446,-450.0,0.00013698,2]
[361369920,1747521044455,-450.0,0.00013698,2]
[361369921,1747521044464,-450.0,0.00013698,2]
[361369922,1747521044473,-450.0,0.00013698,2]
[361369923,1747521044483,-562.93,0.00013698,2]
[361369924,1747521044492,-469.27666489,0.00013698,2]
[361369925,1747521044501,-450.0,0.00013698,2]
[361369926,1747521044510,-450.0,0.00013698,2]
[361369927,1747521044520,-450.0,0.00013698,2]
[361369928,1747521044529,-450.0,0.00013698,2]
[361369929,1747521044539,-450.0,0.00013698,2]
[361369930,1747521044549,-447.66,0.00013698,2]
[361369931,1747521044559,-450.0,0.00013698,2]
[361369932,1747521044568,-450.0,0.00013698,2]
[361369933,1747521044579,-450.0,0.00013698,2]
[361369934,1747521044588,-450.0,0.00013698,2]
[361369935,1747521044598,-307.46546862,0.00013698,2]
[361369936,1747521044607,-450.0,0.00013698,2]
[361369937,1747521044616,-450.0,0.00013698,2]
[361369938,1747521044626,-450.0,0.00013698,2]
[361369939,1747521044636,-450.0,0.00013698,2]
[361369940,1747521044646,-450.0,0.00013698,2]
[361369941,1747521044656,-450.0,0.00013698,2]
[361369942,1747521044666,-450.0,0.00013698,2]
[361369943,1747521044675,-450.0,0.00013698,2]
[361369944,1747521044685,-450.0,0.00013698,2]
[361369945,1747521044695,-450.0,0.00013698,2]
[361369946,1747521044705,-450.0,0.00013698,2]
[361369947,1747521044715,-450.0,0.00013698,2]
[361369948,1747521044724,-450.0,0.00013698,2]
[361369949,1747521044734,-450.0,0.00013698,2]
[361369950,1747521044745,-482.03,0.00013698,2]
[361369951,1747521044755,-450.0,0.00013698,2]
[361369952,1747521044764,-450.0,0.00013698,2]
[361369953,1747521044774,-450.0,0.00013698,2]
[361369954,1747521044783,-450.0,0.00013698,2]
[361369955,1747521044793,-450.0,0.00013698,2]
[361369956,1747521044803,-450.0,0.00013698,2]
[361369957,1747521044813,-450.0,0.00013698,2]
[361369958,1747521044822,-450.0,0.00013698,2]
[361369959,1747521044832,-450.0,0.00013698,2]
[361369960,1747521044842,-450.0,0.00013698,2]
[361369961,1747521044851,-450.0,0.00013698,2]
[361369962,1747521044861,-450.0,0.00013698,2]
[361369963,1747521044871,-450.0,0.00013698,2]
[361369964,1747521044882,-450.0,0.00013698,2]
[361369965,1747521044892,-450.0,0.00013698,2]
[361369966,1747521044902,-450.0,0.00013698,2]
[361369967,1747521044911,-450.0,0.00013698,2]
[361369968,1747521044921,-450.0,0.00013698,2]
[361369969,1747521044930,-450.0,0.00013698,2]
[361369970,1747521044940,-450.0,0.00013698,2]
[361369971,1747521044949,-497.01,0.00013698,2]
[361369972,1747521044959,-450.0,0.00013698,2]
[361369973,1747521044968,-450.0,0.00013698,2]
[361369974,1747521044978,-450.0,0.00013698,2]
[361369975,1747521044987,-450.0,0.00013698,2]
[361369976,1747521045167,-306.78278806,0.00013698,2]
[361369977,1747521045178,-450.0,0.00013698,2]
[361369978,1747521045187,-450.0,0.00013698,2]
[361369979,1747521045197,-450.0,0.00013698,2]
[361369980,1747521045206,-450.0,0.00013698,2]
[361369981,1747521045216,-343.00663427,0.00013698,2]
[361369982,1747521045226,-450.0,0.00013698,2]
[361369983,1747521045238,-450.0,0.00013698,2]
[361369984,1747521045249,-450.0,0.00013698,2]
[361369985,1747521045258,-491.9,0.00013698,2]
[361369986,1747521045267,-450.0,0.00013698,2]
[361369987,1747521045276,-450.0,0.00013698,2]
[361369988,1747521045287,-450.0,0.00013698,2]
[361369989,1747521045296,-450.0,0.00013698,2]
[361369990,1747521045306,-450.0,0.00013698,2]
[361369991,1747521045316,-450.0,0.00013698,2]
[361369992,1747521045325,-450.0,0.00013698,2]
[361369993,1747521045335,-450.0,0.00013698,2]
[361369994,1747521045343,-450.0,0.00013698,2]
[361369995,1747521045352,-450.0,0.00013698,2]
[361369996,1747521045362,-450.0,0.00013698,2]
[361369997,1747521045371,-450.0,0.00013698,2]
[361369998,1747521045380,-450.0,0.00013698,2]
[361369999,1747521045390,-450.0,0.00013698,2]
[361370000,1747521045399,-450.0,0.00013698,2]
[361370001,1747521045409,-450.0,0.00013698,2]
[361370002,1747521045418,-450.0,0.00013698,2]